fUSD/lending_fUSD_20251024
["ID","MTS","AMOUNT","RATE_DAILY","PERIOD"]
[392304397,1761322322911,-500.0,0.00042191,30]
[392304398,1761322322920,-500.0,0.00042191,30]
[392304399,1761322322931,-506.73,0.00042191,30]
[392304400,1761322322940,-500.0,0.00042191,30]
[392304401,1761322322950,-500.0,0.00042191,30]
[392304402,1761322322960,-500.0,0.00042191,30]
[392304403,1761322322970,-500.0,0.00042191,30]
[392304404,1761322322979,-500.0,0.00042191,30]
[392304405,1761322322989,-500.0,0.00042191,30]
[392304406,1761322322998,-500.0,0.00042191,30]
[392304407,1761322323008,-500.0,0.00042191,30]
[392304408,1761322323020,-500.0,0.00042191,30]
[392304409,1761322323030,-772.81,0.00042191,30]
[392304410,1761322323041,-670.73,0.00042191,30]
[392304411,1761322323051,-500.0,0.00042191,30]
[392304412,1761322323062,-500.0,0.00042191,30]
[392304413,1761322323073,-500.0,0.00042191,30]
[392304414,1761322323083,-500.0,0.00042191,30]
[392304415,1761322323093,-500.0,0.00042191,30]
[392304416,1761322323314,-500.0,0.00042191,30]
[392304417,1761322323325,-500.0,0.00042191,30]
[392304418,1761322323335,-500.0,0.00042191,30]
[392304419,1761322323345,-850.65,0.00042191,30]
[392304420,1761322323355,-500.0,0.00042191,30]
[392304421,1761322323365,-500.0,0.00042191,30]
[392304422,1761322323375,-507.25,0.00042191,30]
[392304423,1761322323385,-500.0,0.00042191,30]
[392304424,1761322323395,-784.75,0.00042191,30]
[392304425,1761322323405,-500.0,0.00042191,30]
[392304426,1761322323416,-500.0,0.00042191,30]
[392304427,1761322323426,-500.0,0.00042191,30]
[392304428,1761322323441,-500.0,0.00042191,30]
[392304429,1761322323451,-500.0,0.00042191,30]
[392304430,1761322323461,-619.9901603,0.00042191,30]
[392304431,1761322323471,-531.06844437,0.00042191,30]
[392304432,1761322323481,-601.83,0.00042191,30]
[392304433,1761322323491,-500.0,0.00042191,30]
[392304434,1761322323501,-610.23,0.00042191,30]
[392304435,1761322323511,-732.62,0.00042191,30]
[392304436,1761322323521,-523.68,0.00042191,30]
[392304437,1761322323531,-500.0,0.00042191,30]
[392304438,1761322323542,-500.0,0.00042191,30]
[392304439,1761322323552,-500.0,0.00042191,30]
[392304440,1761322323563,-500.0,0.00042191,30]
[392304441,1761322323572,-762.88,0.00042191,30]
[392304442,1761322323582,-498.22184341,0.00042191,30]
[392304443,1761322323592,-626.64,0.00042191,30]
[392304444,1761322323602,-500.0,0.00042191,30]
[392304445,1761322323612,-282.79713234,0.00042191,30]
[392304446,1761322323623,-895.22,0.00042191,30]
[392304447,1761322323632,-500.0,0.00042191,30]
[392304448,1761322323643,-500.0,0.00042191,30]
[392304449,1761322323653,-500.0,0.00042191,30]
[392304450,1761322323663,-500.0,0.00042191,30]
[392304451,1761322323673,-821.0,0.00042191,30]
[392304452,1761322323682,-500.0,0.00042191,30]
[392304453,1761322323692,-500.0,0.00042191,30]
[392304454,1761322323702,-500.0,0.00042191,30]
[392304455,1761322323711,-564.45,0.00042191,30]
[392304456,1761322323721,-500.0,0.00042191,30]
[392304457,1761322323731,-500.0,0.00042191,30]
[392304458,1761322323746,-500.0,0.00042191,30]
[392304459,1761322323756,-500.0,0.00042191,30]
[392304460,1761322323766,-500.0,0.00042191,30]
[392304461,1761322323777,-500.0,0.00042191,30]
[392304462,1761322323788,-500.0,0.00042191,30]
[392304463,1761322323798,-500.0,0.00042191,30]
[392304464,1761322323808,-558.27,0.00042191,30]
[392304465,1761322323820,-911.49,0.00042191,30]
[392304466,1761322323831,-500.0,0.00042191,30]
[392304467,1761322323840,-500.0,0.00042191,30]
[392304468,1761322323850,-500.0,0.00042191,30]
[392304469,1761322323860,-500.0,0.00042191,30]
[392304470,1761322323870,-500.0,0.00042191,30]
[392304471,1761322323879,-500.0,0.00042191,30]
[392304472,1761322323889,-500.0,0.00042191,30]
[392304473,1761322323899,-645.37,0.00042191,30]
[392304474,1761322323910,-1087.75,0.00042191,30]
[392304475,1761322323919,-534.837003,0.00042191,30]
[392304476,1761322323929,-500.0,0.00042191,30]
[392304477,1761322323939,-500.0,0.00042191,30]
[392304478,1761322323949,-500.0,0.00042191,30]
[392304479,1761322323958,-654.32,0.00042191,30]
[392304480,1761322323968,-500.0,0.00042191,30]
[392304481,1761322323978,-500.0,0.00042191,30]
[392304482,1761322323989,-618.14,0.00042191,30]
[392304483,1761322323999,-500.0,0.00042191,30]
[392304484,1761322324009,-597.11,0.00042191,30]
[392304485,1761322324019,-756.12,0.00042191,30]
[392304486,1761322324030,-601.75,0.00042191,30]
[392304487,1761322324041,-500.0,0.00042191,30]
[392304488,1761322324051,-500.0,0.00042191,30]
[392304489,1761322324062,-500.0,0.00042191,30]
[392304490,1761322324072,-511.53717312,0.00042191,30]
[392304491,1761322324083,-500.0,0.00042191,30]
[392304492,1761322324093,-500.0,0.00042191,30]
[392304493,1761322324104,-712.8,0.00042191,30]
[392304494,1761322324115,-500.0,0.00042191,30]
[392304495,1761322324126,-500.0,0.00042191,30]
[392304496,1761322324137,-500.0,0.00042191,5]
[392304497,1761322324148,-337.94900879,0.00042191,30]
[392304498,1761322324158,-555.24,0.00042191,30]
[392304499,1761322324169,-500.0,0.00042191,30]
[392304500,1761322324179,-540.6,0.00042191,30]
[392304501,1761322324189,-397.44827518,0.00042191,30]
[392304502,1761322324199,-500.0,0.00042191,30]
[392304503,1761322324209,-652.9,0.00042191,30]
[392304504,1761322324218,-500.0,0.00042191,30]
[392304505,1761322324228,-647.27,0.00042191,30]
[392304506,1761322324238,-500.0,0.00042191,30]
[392304507,1761322324248,-500.0,0.00042191,30]
[392304508,1761322324258,-500.0,0.00042191,30]
[392304509,1761322324268,-500.0,0.00042191,30]
[392304510,1761322324278,-571.05,0.00042191,30]
[392304511,1761322324288,-500.0,0.00042191,30]
[392304512,1761322324299,-500.0,0.00042191,30]
[392304513,1761322324309,-500.0,0.00042191,30]
[392304514,1761322324319,-500.0,0.00042191,30]
[392304515,1761322324329,-500.0,0.00042191,30]
[392304516,1761322324338,-756.91,0.00042191,30]
[392304517,1761322324349,-522.74,0.00042191,30]
[392304518,1761322324363,-632.46,0.00042191,30]
[392304519,1761322324373,-500.0,0.00042191,30]
[392304520,1761322324383,-525.04822911,0.00042191,30]
[392304521,1761322324393,-580.46098391,0.00042191,30]
[392304522,1761322324403,-500.0,0.00042191,30]
[392304523,1761322324413,-500.0,0.00042191,30]
[392304524,1761322324424,-500.0,0.00042191,30]
[392304525,1761322324434,-711.07,0.00042191,30]
[392304526,1761322324443,-500.0,0.00042191,30]
[392304527,1761322324453,-500.0,0.00042191,30]
[392304528,1761322324464,-500.0,0.00042191,30]
[392304529,1761322324475,-500.0,0.00042191,30]
[392304530,1761322324486,-739.05,0.00042191,30]
[392304531,1761322324497,-507.68731552,0.00042191,30]
[392304532,1761322324507,-500.0,0.00042191,30]
[392304533,1761322324518,-500.0,0.00042191,30]
[392304534,1761322324527,-602.18,0.00042191,30]
[392304535,1761322324537,-500.0,0.00042191,30]
[392304536,1761322324547,-786.39,0.00042191,30]
[392304537,1761322324557,-500.0,0.00042191,30]
[392304538,1761322324567,-300.0,0.00042191,2]
[392304539,1761322324577,-726.2,0.00042191,30]
[392304540,1761322324588,-500.0,0.00042191,30]
[392304541,1761322324598,-589.03,0.00042191,30]
[392304542,1761322324609,-660.65,0.00042191,30]
[392304543,1761322324621,-771.99,0.00042191,30]
[392304544,1761322324632,-500.0,0.00042191,30]
[392304545,1761322324642,-500.0,0.00042191,30]
[392304546,1761322324652,-712.13,0.00042191,30]
[392304547,1761322324663,-368.46093274,0.00042191,30]
[392304548,1761322324674,-741.67,0.00042191,30]
[392304549,1761322324684,-692.09,0.00042191,30]
[392304550,1761322324694,-500.0,0.00042191,30]
[392304551,1761322324704,-200.9946567,0.00042191,30]
[392304552,1761322324713,-506.74,0.00042191,30]
[392304553,1761322324723,-500.0,0.00042191,30]
[392304554,1761322324732,-500.0,0.00042191,30]
[392304555,1761322324746,-992.81,0.00042191,30]
[392304556,1761322324756,-588.6961617,0.00042191,30]
[392304557,1761322324766,-500.0,0.00042191,30]
[392304558,1761322324776,-500.0,0.00042191,30]
[392304559,1761322324787,-500.0,0.00042191,30]
[392304560,1761322324797,-500.0,0.00042191,30]
[392304561,1761322324807,-834.39,0.00042191,30]
[392304562,1761322324818,-597.68,0.00042191,30]
[392304563,1761322324827,-852.93,0.00042191,30]
[392304564,1761322324837,-500.0,0.00042191,30]
[392304565,1761322324847,-730.33,0.00042191,30]
[392304566,1761322324856,-500.0,0.00042191,30]
[392304567,1761322324867,-500.0,0.00042191,30]
[392304568,1761322324877,-500.0,0.00042191,30]
[392304569,1761322324888,-500.0,0.00042191,30]
[392304570,1761322324898,-500.0,0.00042191,30]
[392304571,1761322324907,-804.87,0.00042191,30]
[392304572,1761322324917,-500.0,0.00042191,30]
[392304573,1761322324927,-500.0,0.00042191,30]
[392304574,1761322324937,-500.0,0.00042191,30]
[392304575,1761322324947,-518.2643909,0.00042191,30]
[392304576,1761322324957,-500.0,0.00042191,30]
[392304577,1761322324967,-1592.15,0.00042191,30]
[392304578,1761322324976,-957.33,0.00042191,30]
[392304579,1761322324987,-500.0,0.00042191,30]
[392304580,1761322324996,-500.0,0.00042191,30]
[392304581,1761322325006,-500.0,0.00042191,30]
[392304582,1761322325016,-500.0,0.00042191,30]
[392304583,1761322325026,-500.0,0.00042191,30]
[392304584,1761322325036,-500.0,0.00042191,30]
[392304585,1761322325045,-500.0,0.00042191,30]
[392304586,1761322325055,-215.49520091,0.00042191,30]
[392304587,1761322325064,-500.0,0.00042191,30]
[392304588,1761322325074,-500.0,0.00042191,30]
[392304589,1761322325084,-500.0,0.00042191,30]
[392304590,1761322325093,-500.0,0.00042191,30]
[392304591,1761322325103,-533.69,0.00042191,30]
[392304592,1761322325112,-500.0,0.00042191,30]
[392304593,1761322325122,-543.13,0.00042191,30]
[392304594,1761322325132,-500.0,0.00042191,30]
[392304595,1761322325141,-705.53,0.00042191,30]
[392304596,1761322325151,-500.0,0.00042191,30]
[392304597,1761322325160,-500.0,0.00042191,30]
[392304598,1761322325169,-500.0,0.00042191,30]
[392304599,1761322325179,-500.0,0.00042191,30]
[392304600,1761322325188,-500.0,0.00042191,30]
[392304601,1761322325198,-500.0,0.00042191,30]
[392304602,1761322325208,-500.0,0.00042191,30]
[392304603,1761322325218,-500.0,0.00042191,30]
[392304604,1761322325229,-500.0,0.00042191,30]
[392304605,1761322325239,-500.0,0.00042191,30]
[392304606,1761322325248,-637.51,0.00042191,30]
[392304607,1761322325259,-500.0,0.00042191,30]
[392304608,1761322325269,-721.76,0.00042191,30]
[392304609,1761322325278,-500.0,0.00042191,30]
[392304610,1761322325287,-835.57,0.00042191,30]
[392304611,1761322325297,-500.0,0.00042191,30]
[392304612,1761322325307,-500.0,0.00042191,30]
[392304613,1761322325317,-500.0,0.00042191,30]
[392304614,1761322325328,-500.0,0.00042191,30]
[392304615,1761322325338,-151.70714683,0.00042191,30]
[392304616,1761322325348,-500.0,0.00042191,30]
[392304617,1761322325359,-500.0,0.00042191,30]
[392304618,1761322325370,-752.46,0.00042191,30]
[392304619,1761322325380,-500.0,0.00042191,30]
[392304620,1761322325391,-500.0,0.00042191,30]
[392304621,1761322325402,-500.0,0.00042191,30]
[392304622,1761322325412,-500.0,0.00042191,30]
[392304623,1761322325423,-500.0,0.00042191,30]
[392304624,1761322325432,-1181.61,0.00042191,30]
[392304625,1761322325442,-500.0,0.00042191,30]
[392304626,1761322325452,-590.26,0.00042191,30]
[392304627,1761322325462,-24520.78,0.00042191,30]
[392304628,1761322325471,-500.0,0.00042191,30]
[392304629,1761322325480,-500.0,0.00042191,120]
[392304630,1761322325490,-500.0,0.00042191,30]
[392304631,1761322325499,-597.68,0.00042191,30]
[392304632,1761322325509,-2227.55,0.00042191,30]
[392304633,1761322325518,-500.0,0.00042191,30]
[392304634,1761322325528,-500.0,0.00042191,30]
[392304635,1761322325537,-500.0,0.00042191,30]
[392304636,1761322325547,-500.0,0.00042191,30]
[392304637,1761322325556,-500.0,0.00042191,30]
[392304638,1761322325566,-635.68,0.00042191,30]
[392304639,1761322325575,-518.98,0.00042191,30]
[392304640,1761322325585,-500.0,0.00042191,30]
[392304641,1761322325594,-500.0,0.00042191,30]
[392304642,1761322325604,-500.0,0.00042191,30]
[392304643,1761322325613,-500.0,0.00042191,30]
[392304644,1761322325623,-500.0,0.00042191,30]
[392304645,1761322325633,-500.0,0.00042191,30]
[392304646,1761322325642,-500.0,0.00042191,30]
[392304647,1761322325651,-500.0,0.00042191,30]
[392304648,1761322325661,-1049.8,0.00042191,30]
[392304649,1761322325671,-500.0,0.00042191,30]
[392304650,1761322325681,-500.0,0.00042191,30]
[392304651,1761322325691,-500.0,0.00042191,30]
[392304652,1761322325700,-500.0,0.00042191,30]
[392304653,1761322325710,-678.75,0.00042191,30]
[392304654,1761322325719,-500.0,0.00042191,30]
[392304655,1761322325729,-675.92,0.00042191,30]
[392304656,1761322325743,-500.0,0.00042191,30]
[392304657,1761322325753,-500.0,0.00042191,30]
[392304658,1761322325763,-500.0,0.00042191,30]
[392304659,1761322325775,-769.84,0.00042191,30]
[392304660,1761322325786,-643.28,0.00042191,30]
[392304661,1761322325902,-772.75,0.00042191,30]
[392304662,1761322325912,-500.0,0.00042191,30]
[392304663,1761322325922,-500.0,0.00042191,30]
[392304664,1761322325932,-500.0,0.00042191,30]
[392304665,1761322325941,-500.0,0.00042191,30]
[392304666,1761322325951,-500.0,0.00042191,30]
[392304667,1761322325962,-500.0,0.00042191,30]
[392304668,1761322325973,-500.0,0.00042191,30]
[392304669,1761322325984,-592.37,0.00042191,30]
[392304670,1761322325994,-500.0,0.00042191,30]
[392304671,1761322326004,-711.48,0.00042191,30]
[392304672,1761322326014,-664.9,0.00042191,30]
[392304673,1761322326026,-500.0,0.00042191,30]
[392304674,1761322326037,-500.0,0.00042191,30]
[392304675,1761322326047,-3293.92,0.00042191,30]
[392304676,1761322326057,-651.98,0.00042191,30]
[392304677,1761322326068,-500.0,0.00042191,30]
[392304678,1761322326078,-555.16,0.00042191,30]
[392304679,1761322326088,-1314.62,0.00042191,30]
[392304680,1761322326099,-500.0,0.00042191,30]
[392304681,1761322326110,-500.0,0.00042191,30]
[392304682,1761322326120,-574.28,0.00042191,30]
[392304683,1761322326130,-500.0,0.00042191,30]
[392304684,1761322326141,-500.0,0.00042191,30]
[392304685,1761322326151,-500.0,0.00042191,30]
[392304686,1761322326161,-530.89,0.00042191,30]
[392304687,1761322326171,-500.0,0.00042191,30]
[392304688,1761322326181,-500.0,0.00042191,30]
[392304689,1761322326191,-500.0,0.00042191,30]
[392304690,1761322326201,-612.78,0.00042191,30]
[392304691,1761322326210,-500.0,0.00042191,30]
[392304692,1761322326221,-500.0,0.00042191,30]
[392304693,1761322326230,-571.0,0.00042191,30]
[392304694,1761322326240,-500.0,0.00042191,30]
[392304695,1761322326249,-830.29,0.00042191,30]
[392304696,1761322326258,-945.03,0.00042191,30]
[392304697,1761322326268,-500.0,0.00042191,30]
[392304698,1761322326281,-1033.26,0.00042191,30]
[392304699,1761322326290,-500.0,0.00042191,30]
[392304700,1761322326300,-663.7,0.00042191,30]
[392304701,1761322326311,-1023.75,0.00042191,30]
[392304702,1761322326321,-500.0,0.00042191,30]
[392304703,1761322326331,-500.0,0.00042191,30]
[392304704,1761322326341,-696.08,0.00042191,30]
[392304705,1761322326351,-641.73,0.00042191,30]
[392304706,1761322326361,-500.0,0.00042191,30]
[392304707,1761322326370,-500.0,0.00042191,30]
[392304708,1761322326380,-500.0,0.00042191,30]
[392304709,1761322326389,-579.17,0.00042191,30]
[392304710,1761322326400,-500.0,0.00042191,30]
[392304711,1761322326411,-513.45,0.00042191,30]
[392304712,1761322326422,-500.0,0.00042191,30]
[392304713,1761322326432,-500.0,0.00042191,30]
[392304714,1761322326441,-669.12,0.00042191,30]
[392304715,1761322326451,-642.33226398,0.00042191,30]
[392304716,1761322326461,-500.0,0.00042191,30]
[392304717,1761322326471,-516.46,0.00042191,30]
[392304718,1761322326481,-501.88,0.00042191,30]
[392304719,1761322326491,-704.55,0.00042191,30]
[392304720,1761322326500,-641.27,0.00042191,30]
[392304721,1761322326510,-793.21,0.00042191,30]
[392304722,1761322326522,-202.92345616,0.00042191,30]
[392304723,1761322326532,-500.0,0.00042191,30]
[392304724,1761322326543,-500.0,0.00042191,30]
[392304725,1761322326554,-500.0,0.00042191,30]
[392304726,1761322326564,-564.0,0.00042191,30]
[392304727,1761322326574,-500.0,0.00042191,30]
[392304728,1761322326583,-681.34,0.00042191,30]
[392304729,1761322326593,-500.0,0.00042191,30]
[392304730,1761322326602,-500.0,0.00042191,30]
[392304731,1761322326612,-583.52,0.00042191,30]
[392304732,1761322326622,-720.15,0.00042191,30]
[392304733,1761322326633,-500.0,0.00042191,30]
[392304734,1761322326643,-500.0,0.00042191,30]
[392304735,1761322326653,-500.0,0.00042191,30]
[392304736,1761322326663,-500.0,0.00042191,30]
[392304737,1761322326673,-522.17,0.00042191,30]
[392304738,1761322326683,-500.0,0.00042191,30]
[392304739,1761322326693,-553.64,0.00042191,30]
[392304740,1761322326703,-500.0,0.00042191,30]
[392304741,1761322326712,-500.0,0.00042191,30]
[392304742,1761322326722,-500.0,0.00042191,30]
[392304743,1761322326730,-500.0,0.00042191,30]
[392304744,1761322326745,-500.0,0.00042191,30]
[392304745,1761322326755,-500.0,0.00042191,30]
[392304746,1761322326764,-500.0,0.00042191,30]
[392304747,1761322326775,-500.0,0.00042191,30]
[392304748,1761322326786,-500.0,0.00042191,30]
[392304749,1761322326796,-500.0,0.00042191,30]
[392304750,1761322326806,-500.0,0.00042191,30]
[392304751,1761322326817,-500.0,0.00042191,30]
[392304752,1761322326827,-500.0,0.00042191,30]
[392304753,1761322326837,-500.0,0.00042191,30]
[392304754,1761322326847,-500.0,0.00042191,30]
[392304755,1761322326858,-3165.94,0.00042191,30]
[392304756,1761322326868,-577.34,0.00042191,30]
[392304757,1761322326877,-500.0,0.00042191,30]
[392304758,1761322326887,-500.0,0.00042191,30]
[392304759,1761322326898,-500.0,0.00042191,30]
[392304760,1761322326908,-781.42,0.00042191,30]
[392304761,1761322326917,-500.0,0.00042191,30]
[392304762,1761322326927,-592.04,0.00042191,30]
[392304763,1761322326937,-500.0,0.00042191,30]
[392304764,1761322326947,-507.17,0.00042191,30]
[392304765,1761322326956,-500.0,0.00042191,30]
[392304766,1761322326967,-500.0,0.00042191,30]
[392304767,1761322326977,-500.0,0.00042191,30]
[392304768,1761322326987,-500.0,0.00042191,30]
[392304769,1761322326997,-500.0,0.00042191,30]
[392304770,1761322327006,-500.0,0.00042191,30]
[392304771,1761322327016,-627.51,0.00042191,30]
[392304772,1761322327027,-500.0,0.00042191,30]
[392304773,1761322327037,-658.05,0.00042191,30]
[392304774,1761322327047,-500.0,0.00042191,30]
[392304775,1761322327057,-500.0,0.00042191,30]
[392304776,1761322327067,-500.0,0.00042191,30]
[392304777,1761322327077,-500.0,0.00042191,30]
[392304778,1761322327087,-43111.76,0.00042191,30]
[392304779,1761322327098,-500.0,0.00042191,30]
[392304780,1761322327108,-824.03,0.00042191,30]
[392304781,1761322327118,-572.74,0.00042191,30]
[392304782,1761322327128,-707.49,0.00042191,30]
[392304783,1761322327138,-500.0,0.00042191,30]
[392304784,1761322327147,-500.0,0.00042191,2]
[392304785,1761322327157,-500.0,0.00042191,30]
[392304786,1761322327167,-1143.07,0.00042191,30]
[392304787,1761322327177,-560.87,0.00042191,30]
[392304788,1761322327186,-500.0,0.00042191,120]
[392304789,1761322327196,-500.0,0.00042191,30]
[392304790,1761322327205,-500.0,0.00042191,30]
[392304791,1761322327216,-500.0,0.00042191,30]
[392304792,1761322327225,-596.94,0.00042191,30]
[392304793,1761322327235,-654.5,0.00042191,30]
[392304794,1761322327245,-507.69,0.00042191,30]
[392304795,1761322327255,-346.79755797,0.00042191,30]
[392304796,1761322327265,-500.0,0.00042191,30]
[392304797,1761322327276,-976.73,0.00042191,30]
[392304798,1761322327286,-500.0,0.00042191,30]
[392304799,1761322327295,-526.28,0.00042191,30]
[392304800,1761322327305,-766.16,0.00042191,30]
[392304801,1761322327315,-500.0,0.00042191,30]
[392304802,1761322327325,-500.0,0.00042191,30]
[392304803,1761322327334,-500.0,0.00042191,30]
[392304804,1761322327344,-500.0,0.00042191,30]
[392304805,1761322327354,-500.0,0.00042191,30]
[392304806,1761322327364,-500.0,0.00042191,5]
[392304807,1761322327373,-500.0,0.00042191,30]
[392304808,1761322327383,-500.0,0.00042191,30]
[392304809,1761322327392,-598.92,0.00042191,30]
[392304810,1761322327401,-843.03,0.00042191,30]
[392304811,1761322327410,-500.0,0.00042191,30]
[392304812,1761322327424,-547.11,0.00042191,30]
[392304813,1761322327433,-905.81,0.00042191,30]
[392304814,1761322327443,-649.83,0.00042191,30]
[392304815,1761322327452,-605.46,0.00042191,30]
[392304816,1761322327461,-500.0,0.00042191,30]
[392304817,1761322327471,-500.0,0.00042191,30]
[392304818,1761322327480,-500.0,0.00042191,30]
[392304819,1761322327489,-500.0,0.00042191,30]
[392304820,1761322327498,-500.0,0.00042191,30]
[392304821,1761322327507,-675.1,0.00042191,30]
[392304822,1761322327517,-500.0,0.00042191,30]
[392304823,1761322327527,-500.0,0.00042191,30]
[392304824,1761322327536,-500.0,0.00042191,30]
[392304825,1761322327546,-500.0,0.00042191,30]
[392304826,1761322327556,-500.0,0.00042191,30]
[392304827,1761322327566,-818.3,0.00042191,30]
[392304828,1761322327575,-349.66667847,0.00042191,30]
[392304829,1761322327584,-500.0,0.00042191,30]
[392304830,1761322327594,-500.0,0.00042191,30]
[392304831,1761322327604,-500.0,0.00042191,30]
[392304832,1761322327614,-500.0,0.00042191,30]
[392304833,1761322327625,-500.0,0.00042191,30]
[392304834,1761322327635,-554.2,0.00042191,30]
[392304835,1761322327644,-500.0,0.00042191,30]
[392304836,1761322327654,-851.07,0.00042191,30]
[392304837,1761322327664,-500.0,0.00042191,30]
[392304838,1761322327674,-500.0,0.00042191,30]
[392304839,1761322327684,-500.0,0.00042191,30]
[392304840,1761322327693,-634.48,0.00042191,30]
[392304841,1761322327703,-500.0,0.00042191,30]
[392304842,1761322327712,-943.35,0.00042191,30]
[392304843,1761322327722,-500.0,0.00042191,30]
[392304844,1761322327732,-500.0,0.00042191,2]
[392304845,1761322327745,-500.0,0.00042191,30]
[392304846,1761322327755,-500.0,0.00042191,30]
[392304847,1761322327764,-500.0,0.00042191,30]
[392304848,1761322327775,-551.58430353,0.00042191,30]
[392304849,1761322327785,-500.0,0.00042191,30]
[392304850,1761322327794,-726.59,0.00042191,30]
[392304851,1761322327804,-500.0,0.00042191,30]
[392304852,1761322327816,-500.0,0.00042191,30]
[392304853,1761322327827,-500.0,0.00042191,30]
[392304854,1761322327837,-530.52,0.00042191,30]
[392304855,1761322327846,-554.24,0.00042191,30]
[392304856,1761322327857,-500.0,0.00042191,30]
[392304857,1761322327866,-500.0,0.00042191,30]
[392304858,1761322327876,-534.6,0.00042191,30]
[392304859,1761322327885,-504.93860925,0.00042191,30]
[392304860,1761322327895,-500.0,0.00042191,30]
[392304861,1761322327905,-703.61,0.00042191,30]
[392304862,1761322327915,-500.0,0.00042191,30]
[392304863,1761322327925,-619.86,0.00042191,30]
[392304864,1761322327935,-449.35450339,0.00042191,30]
[392304865,1761322327944,-500.0,0.00042191,30]
[392304866,1761322327954,-500.0,0.00042191,30]
[392304867,1761322327964,-540.26,0.00042191,30]
[392304868,1761322327973,-500.0,0.00042191,30]
[392304869,1761322327983,-506.89,0.00042191,30]
[392304870,1761322327992,-500.0,0.00042191,30]
[392304871,1761322328002,-500.0,0.00042191,30]
[392304872,1761322328011,-500.0,0.00042191,30]
[392304873,1761322328021,-500.0,0.00042191,30]
[392304874,1761322328032,-500.0,0.00042191,30]
[392304875,1761322328041,-500.0,0.00042191,30]
[392304876,1761322328051,-500.0,0.00042191,30]
[392304877,1761322328061,-500.0,0.00042191,30]
[392304878,1761322328071,-500.0,0.00042191,30]
[392304879,1761322328082,-730.1,0.00042191,30]
[392304880,1761322328092,-500.0,0.00042191,30]
[392304881,1761322328103,-500.0,0.00042191,30]
[392304882,1761322328113,-500.0,0.00042191,30]
[392304883,1761322328123,-500.0,0.00042191,30]
[392304884,1761322328133,-500.0,0.00042191,30]
[392304885,1761322328143,-500.0,0.00042191,30]
[392304886,1761322328154,-581.74,0.00042191,30]
[392304887,1761322328165,-500.0,0.00042191,30]
[392304888,1761322328175,-500.0,0.00042191,30]
[392304889,1761322328185,-604.04,0.00042191,30]
[392304890,1761322328196,-500.0,0.00042191,30]
[392304891,1761322328206,-611.69,0.00042191,30]
[392304892,1761322328217,-500.0,0.00042191,30]
[392304893,1761322328227,-500.0,0.00042191,30]
[392304894,1761322328238,-500.0,0.00042191,30]
[392304895,1761322328248,-513.05,0.00042191,30]
[392304896,1761322328258,-696.18,0.00042191,30]